[Event "Early-Titled-Tuesday-Blitz-March-26-2024"]
[Site "Chess.com"]
[Date "2024.03.26"]
[Round "1"]
[White "sansanathalia"]
[Black "Witik"]
[Result "0-1"]
[WhiteElo "2417"]
[BlackElo "2759"]
[TimeControl "180+1"]
[EndTime "8:04:36 PDT"]
[Termination "Witik won by resignation"]

1. e4 {[%clk 0:03:00.9]} 1... e5 {[%clk 0:02:55.1]} 2. Nf3 {[%clk 0:02:36.4]}
2... Nc6 {[%clk 0:02:54.4]} 3. d4 {[%clk 0:02:32.8]} 3... exd4 {[%clk 0:02:52]}
4. Nxd4 {[%clk 0:02:32.5]} 4... Bc5 {[%clk 0:02:51.8]} 5. Nb3 {[%clk 0:02:22.2]}
5... Bb6 {[%clk 0:02:51.9]} 6. Nc3 {[%clk 0:02:15]} 6... Nf6 {[%clk 0:02:47.8]}
7. Qe2 {[%clk 0:02:07.9]} 7... a5 {[%clk 0:02:47]} 8. Be3 {[%clk 0:02:04.7]}
8... a4 {[%clk 0:02:36.5]} 9. Nd2 {[%clk 0:02:03.4]} 9... a3 {[%clk 0:02:30.7]}
10. b3 {[%clk 0:02:00.8]} 10... Ba5 {[%clk 0:02:21.3]} 11. Nd5 {[%clk
0:01:00.4]} 11... O-O {[%clk 0:02:18.1]} 12. Nxf6+ {[%clk 0:00:50.4]} 12... Qxf6
{[%clk 0:02:17.6]} 13. Rb1 {[%clk 0:00:50.6]} 13... Nb4 {[%clk 0:02:06.6]} 14.
Qd1 {[%clk 0:00:27.5]} 14... Nxa2 {[%clk 0:02:01.6]} 15. Bd3 {[%clk 0:00:28.1]}
15... Nc3 {[%clk 0:02:00.6]} 16. Qc1 {[%clk 0:00:28.6]} 16... Nxb1 {[%clk
0:01:58.6]} 17. Qxb1 {[%clk 0:00:29.5]} 17... a2 {[%clk 0:01:56.9]} 0-1

[Event "Early-Titled-Tuesday-Blitz-March-26-2024"]
[Site "Chess.com"]
[Date "2024.03.26"]
[Round "1"]
[White "Let_it_be_1"]
[Black "DIM90"]
[Result "1-0"]
[WhiteElo "2658"]
[BlackElo "2327"]
[TimeControl "180+1"]
[EndTime "8:04:41 PDT"]
[Termination "Let_it_be_1 won by resignation"]

1. e4 {[%clk 0:02:51.8]} 1... e5 {[%clk 0:02:58.9]} 2. Nf3 {[%clk 0:02:51.4]}
2... Nf6 {[%clk 0:02:59.6]} 3. Nxe5 {[%clk 0:02:50.7]} 3... d6 {[%clk
0:03:00.2]} 4. Nf3 {[%clk 0:02:51]} 4... Nxe4 {[%clk 0:03:00.5]} 5. Qe2 {[%clk
0:02:51.4]} 5... Qe7 {[%clk 0:02:59.8]} 6. d3 {[%clk 0:02:52]} 6... Nf6 {[%clk
0:03:00.2]} 7. Bg5 {[%clk 0:02:52.4]} 7... Be6 {[%clk 0:03:00.6]} 8. Nc3 {[%clk
0:02:50.5]} 8... Nbd7 {[%clk 0:03:01.1]} 9. O-O-O {[%clk 0:02:49.5]} 9... O-O-O
{[%clk 0:03:01.7]} 10. Nd4 {[%clk 0:02:45.3]} 10... a6 {[%clk 0:02:51.1]} 11.
Re1 {[%clk 0:02:42.2]} 11... Re8 {[%clk 0:02:48.3]} 12. Qd2 {[%clk 0:02:25.1]}
12... h6 {[%clk 0:02:36.6]} 13. Bh4 {[%clk 0:02:18.4]} 13... g5 {[%clk
0:02:33.1]} 14. Bg3 {[%clk 0:02:18.2]} 14... d5 {[%clk 0:02:30.2]} 15. h4 {[%clk
0:02:10.4]} 15... Nh5 {[%clk 0:02:20.5]} 16. hxg5 {[%clk 0:01:28.3]} 16... Nxg3
{[%clk 0:02:17.5]} 17. fxg3 {[%clk 0:01:28.4]} 17... Qb4 {[%clk 0:01:59.4]} 18.
Nxe6 {[%clk 0:01:20.2]} 18... fxe6 {[%clk 0:01:58.2]} 19. Nxd5 {[%clk
0:01:04.2]} 19... Qa4 {[%clk 0:01:58.1]} 20. Qc3 {[%clk 0:00:54.8]} 20... Bc5
{[%clk 0:01:50.2]} 21. Nf4 {[%clk 0:00:43]} 21... hxg5 {[%clk 0:01:45.2]} 22.
Rxh8 {[%clk 0:00:36.9]} 22... Rxh8 {[%clk 0:01:45]} 23. Qxh8+ {[%clk 0:00:36.5]}
1-0

[Event "Early-Titled-Tuesday-Blitz-March-26-2024"]
[Site "Chess.com"]
[Date "2024.03.26"]
[Round "1"]
[White "FormerProdigy"]
[Black "Schattman"]
[Result "1-0"]
[WhiteElo "2969"]
[BlackElo "2522"]
[TimeControl "180+1"]
[EndTime "8:04:44 PDT"]
[Termination "FormerProdigy won by resignation"]

1. c3 {[%clk 0:03:00.9]} 1... Nf6 {[%clk 0:02:58.2]} 2. d4 {[%clk 0:03:01.8]}
2... g6 {[%clk 0:02:50.4]} 3. Bf4 {[%clk 0:03:01.5]} 3... Bg7 {[%clk 0:02:48.3]}
4. Nf3 {[%clk 0:03:00.1]} 4... O-O {[%clk 0:02:45.8]} 5. e3 {[%clk 0:02:59.2]}
5... d6 {[%clk 0:02:43]} 6. h3 {[%clk 0:02:59.3]} 6... c5 {[%clk 0:02:38.1]} 7.
Be2 {[%clk 0:02:52.7]} 7... Qb6 {[%clk 0:02:30.4]} 8. Qc1 {[%clk 0:02:46]} 8...
Nc6 {[%clk 0:02:23.7]} 9. Nbd2 {[%clk 0:02:45.4]} 9... cxd4 {[%clk 0:02:19.3]}
10. exd4 {[%clk 0:02:46.3]} 10... Bf5 {[%clk 0:02:12.1]} 11. Nc4 {[%clk
0:02:42.8]} 11... Qc7 {[%clk 0:02:07.3]} 12. Bh6 {[%clk 0:02:38.8]} 12... Rac8
{[%clk 0:02:02.4]} 13. O-O {[%clk 0:02:36.9]} 13... b5 {[%clk 0:01:58.8]} 14.
Bxg7 {[%clk 0:02:36.3]} 14... Kxg7 {[%clk 0:01:57.4]} 15. Ne3 {[%clk 0:02:37.2]}
15... Bd7 {[%clk 0:01:47.5]} 16. Bxb5 {[%clk 0:02:36.6]} 16... Rb8 {[%clk
0:01:33]} 17. Be2 {[%clk 0:02:34.8]} 17... d5 {[%clk 0:01:23]} 18. Bd3 {[%clk
0:02:23]} 18... Rfc8 {[%clk 0:01:18.2]} 19. Qd2 {[%clk 0:02:08.7]} 19... Na5
{[%clk 0:01:12.3]} 20. Ne5 {[%clk 0:02:06.8]} 20... Bb5 {[%clk 0:01:07]} 21.
Rfe1 {[%clk 0:01:59.4]} 21... Bxd3 {[%clk 0:01:04]} 22. Nxd3 {[%clk 0:02:00.3]}
22... Ne4 {[%clk 0:01:03.1]} 23. Qe2 {[%clk 0:01:58.9]} 23... Nc4 {[%clk
0:00:58.8]} 24. Nxd5 {[%clk 0:01:58.5]} 1-0

[Event "Early-Titled-Tuesday-Blitz-March-26-2024"]
[Site "Chess.com"]
[Date "2024.03.26"]
[Round "1"]
[White "Yuruultei"]
[Black "deribas12345"]
[Result "0-1"]
[WhiteElo "2229"]
[BlackElo "2615"]
[TimeControl "180+1"]
[EndTime "8:04:44 PDT"]
[Termination "deribas12345 won by resignation"]

1. d4 {[%clk 0:02:59.3]} 1... Nf6 {[%clk 0:02:58.9]} 2. c4 {[%clk 0:03:00.2]}
2... c5 {[%clk 0:02:58.9]} 3. d5 {[%clk 0:03:00]} 3... b5 {[%clk 0:02:58.5]} 4.
cxb5 {[%clk 0:02:57.2]} 4... a6 {[%clk 0:02:58.7]} 5. e3 {[%clk 0:02:57.3]} 5...
d6 {[%clk 0:02:58.8]} 6. Nc3 {[%clk 0:02:55.7]} 6... g6 {[%clk 0:02:59]} 7. a4
{[%clk 0:02:55.8]} 7... Bg7 {[%clk 0:02:58.3]} 8. e4 {[%clk 0:02:56]} 8... O-O
{[%clk 0:02:58.6]} 9. h3 {[%clk 0:02:56.5]} 9... e6 {[%clk 0:02:57.3]} 10. Bc4
{[%clk 0:02:54.3]} 10... exd5 {[%clk 0:02:56.9]} 11. exd5 {[%clk 0:02:55.2]}
11... Nbd7 {[%clk 0:02:55.9]} 12. Nf3 {[%clk 0:02:53.6]} 12... Re8+ {[%clk
0:02:55.2]} 13. Be3 {[%clk 0:02:53.2]} 13... Nb6 {[%clk 0:02:50.1]} 14. Bb3
{[%clk 0:02:48.4]} 14... axb5 {[%clk 0:02:45.2]} 15. axb5 {[%clk 0:02:43.1]}
15... Rxa1 {[%clk 0:02:44.6]} 16. Qxa1 {[%clk 0:02:44]} 16... c4 {[%clk
0:02:43.5]} 17. Bc2 {[%clk 0:02:43.2]} 17... Nfxd5 {[%clk 0:02:40.1]} 18. O-O
{[%clk 0:02:42.5]} 18... Nxe3 {[%clk 0:02:36.5]} 19. fxe3 {[%clk 0:02:43.4]}
19... Rxe3 {[%clk 0:02:35.5]} 20. Qa7 {[%clk 0:02:40.1]} 20... Re7 {[%clk
0:02:18.8]} 21. Qa5 {[%clk 0:02:32.8]} 21... Qc7 {[%clk 0:02:15]} 22. Kh1 {[%clk
0:02:22.2]} 22... Bb7 {[%clk 0:02:05.5]} 23. Na4 {[%clk 0:02:08.9]} 23... Nxa4
{[%clk 0:02:03.5]} 24. Qxa4 {[%clk 0:02:09.8]} 24... Bxb2 {[%clk 0:01:58.1]} 25.
Qb4 {[%clk 0:02:07.3]} 25... Bg7 {[%clk 0:01:53.6]} 26. b6 {[%clk 0:02:06]}
26... Qc5 {[%clk 0:01:47.7]} 27. Qb1 {[%clk 0:02:02.9]} 27... d5 {[%clk
0:01:40.6]} 28. Re1 {[%clk 0:02:01.1]} 28... d4 {[%clk 0:01:38]} 29. Rxe7 {[%clk
0:01:49.8]} 29... Qxe7 {[%clk 0:01:33.1]} 30. Qd1 {[%clk 0:01:47.9]} 30... d3
{[%clk 0:01:32.9]} 31. Bxd3 {[%clk 0:01:46.8]} 31... cxd3 {[%clk 0:01:33.3]} 32.
Qxd3 {[%clk 0:01:47.7]} 32... h6 {[%clk 0:01:32.9]} 33. Qb5 {[%clk 0:01:47]}
33... Kh7 {[%clk 0:01:28.7]} 34. Qb3 {[%clk 0:01:46]} 34... Qe6 {[%clk
0:01:25.6]} 35. Qb4 {[%clk 0:01:40.8]} 35... Bxf3 {[%clk 0:01:22.3]} 36. b7
{[%clk 0:01:41.7]} 36... Qxh3+ {[%clk 0:01:19.4]} 0-1

[Event "Early-Titled-Tuesday-Blitz-March-26-2024"]
[Site "Chess.com"]
[Date "2024.03.26"]
[Round "1"]
[White "szachuspl"]
[Black "DrVelja"]
[Result "0-1"]
[WhiteElo "2534"]
[BlackElo "3018"]
[TimeControl "180+1"]
[EndTime "8:04:51 PDT"]
[Termination "DrVelja won by resignation"]

1. d4 {[%clk 0:03:00.9]} 1... Nf6 {[%clk 0:02:58.5]} 2. c4 {[%clk 0:03:00.1]}
2... g6 {[%clk 0:02:56.4]} 3. Nc3 {[%clk 0:02:54.6]} 3... Bg7 {[%clk 0:02:56.1]}
4. e4 {[%clk 0:02:54.3]} 4... d6 {[%clk 0:02:56.8]} 5. Be2 {[%clk 0:02:54.3]}
5... O-O {[%clk 0:02:57.2]} 6. Be3 {[%clk 0:02:53.5]} 6... Na6 {[%clk
0:02:49.7]} 7. Nf3 {[%clk 0:02:49.2]} 7... c5 {[%clk 0:02:47.9]} 8. d5 {[%clk
0:02:47.8]} 8... e6 {[%clk 0:02:47.3]} 9. Nd2 {[%clk 0:02:45.4]} 9... exd5
{[%clk 0:02:46.3]} 10. cxd5 {[%clk 0:02:45.5]} 10... Nc7 {[%clk 0:02:45.5]} 11.
O-O {[%clk 0:02:42.1]} 11... Rb8 {[%clk 0:02:45.4]} 12. a4 {[%clk 0:02:41.8]}
12... Re8 {[%clk 0:02:43.1]} 13. Re1 {[%clk 0:02:35.3]} 13... b6 {[%clk
0:02:43.1]} 14. Qc2 {[%clk 0:02:32.3]} 14... Ba6 {[%clk 0:02:42.2]} 15. Nb5
{[%clk 0:02:30.4]} 15... Bxb5 {[%clk 0:02:06.5]} 16. axb5 {[%clk 0:02:30.3]}
16... Ra8 {[%clk 0:02:05.3]} 17. Ra3 {[%clk 0:02:19.8]} 17... Qd7 {[%clk
0:02:03.8]} 18. Qc4 {[%clk 0:02:17.7]} 18... Ng4 {[%clk 0:02:00.8]} 19. Bxg4
{[%clk 0:02:10.1]} 19... Qxg4 {[%clk 0:02:01.7]} 20. Rea1 {[%clk 0:02:07]} 20...
Bxb2 {[%clk 0:01:38.5]} 21. R3a2 {[%clk 0:02:05]} 21... Bxa1 {[%clk 0:01:37.8]}
22. Rxa1 {[%clk 0:02:05.5]} 22... Qd7 {[%clk 0:01:35]} 23. Rb1 {[%clk
0:02:04.7]} 23... a6 {[%clk 0:01:31.8]} 24. bxa6 {[%clk 0:02:05]} 24... Rxa6
{[%clk 0:01:31.1]} 25. Bf4 {[%clk 0:02:01.3]} 25... b5 {[%clk 0:01:28.5]} 26.
Qc3 {[%clk 0:02:01.2]} 26... b4 {[%clk 0:01:25]} 27. Qb2 {[%clk 0:02:00]} 27...
Nb5 {[%clk 0:01:19.8]} 28. f3 {[%clk 0:01:51.1]} 28... Nc3 {[%clk 0:01:17.9]}
29. Re1 {[%clk 0:01:48]} 29... Ra2 {[%clk 0:01:12.7]} 30. Qc1 {[%clk 0:01:48.3]}
30... Rea8 {[%clk 0:01:08.4]} 31. Kf1 {[%clk 0:01:41.2]} 31... Qb5+ {[%clk
0:01:08.1]} 32. Kf2 {[%clk 0:01:40.2]} 32... Qd3 {[%clk 0:01:05.8]} 0-1

[Event "Early-Titled-Tuesday-Blitz-March-26-2024"]
[Site "Chess.com"]
[Date "2024.03.26"]
[Round "1"]
[White "AccioChess"]
[Black "ContrVersia"]
[Result "0-1"]
[WhiteElo "2510"]
[BlackElo "2927"]
[TimeControl "180+1"]
[EndTime "8:04:57 PDT"]
[Termination "ContrVersia won on time"]

1. e4 {[%clk 0:02:53.5]} 1... c5 {[%clk 0:02:59.6]} 2. Nf3 {[%clk 0:02:52.8]}
2... a6 {[%clk 0:03:00]} 3. c3 {[%clk 0:02:50.9]} 3... e6 {[%clk 0:02:59.4]} 4.
d4 {[%clk 0:02:50.1]} 4... d5 {[%clk 0:03:00]} 5. e5 {[%clk 0:02:49.9]} 5... Bd7
{[%clk 0:02:59.9]} 6. a4 {[%clk 0:02:30]} 6... Nc6 {[%clk 0:02:57.8]} 7. Be2
{[%clk 0:02:29]} 7... Qb6 {[%clk 0:02:55.5]} 8. O-O {[%clk 0:02:22]} 8... cxd4
{[%clk 0:02:49.7]} 9. cxd4 {[%clk 0:02:21.6]} 9... Nge7 {[%clk 0:02:50.6]} 10.
b3 {[%clk 0:01:17.6]} 10... Nf5 {[%clk 0:02:43.4]} 11. Bb2 {[%clk 0:01:17.2]}
11... h5 {[%clk 0:02:41.9]} 12. Na3 {[%clk 0:01:05.4]} 12... Be7 {[%clk
0:02:29.8]} 13. h3 {[%clk 0:00:44.6]} 13... Na5 {[%clk 0:02:15.7]} 14. Rb1
{[%clk 0:00:37.6]} 14... Qxb3 {[%clk 0:02:12]} 15. Qxb3 {[%clk 0:00:27.6]} 15...
Nxb3 {[%clk 0:02:12.9]} 16. Nc2 {[%clk 0:00:27.8]} 16... Rc8 {[%clk 0:02:11.1]}
17. Ne3 {[%clk 0:00:26.6]} 17... Nxe3 {[%clk 0:02:08.8]} 18. fxe3 {[%clk
0:00:27.5]} 18... Bxa4 {[%clk 0:02:08.7]} 19. Bd1 {[%clk 0:00:24.6]} 19... b5
{[%clk 0:02:08.4]} 20. Rf2 {[%clk 0:00:17.1]} 20... O-O {[%clk 0:02:07.6]} 21.
Ne1 {[%clk 0:00:11.6]} 21... h4 {[%clk 0:02:00.5]} 22. Nd3 {[%clk 0:00:11.1]}
22... Rc4 {[%clk 0:01:59.3]} 0-1

[Event "Early-Titled-Tuesday-Blitz-March-26-2024"]
[Site "Chess.com"]
[Date "2024.03.26"]
[Round "1"]
[White "FlemingA"]
[Black "kingofthenil"]
[Result "0-1"]
[WhiteElo "2429"]
[BlackElo "2784"]
[TimeControl "180+1"]
[EndTime "8:05:05 PDT"]
[Termination "kingofthenil won by resignation"]

1. Nc3 {[%clk 0:02:53.8]} 1... d5 {[%clk 0:02:53.9]} 2. Nf3 {[%clk 0:02:51.3]}
2... g6 {[%clk 0:02:48]} 3. d3 {[%clk 0:02:50.1]} 3... Bg7 {[%clk 0:02:44.8]} 4.
g3 {[%clk 0:02:50.6]} 4... d4 {[%clk 0:02:40.3]} 5. Ne4 {[%clk 0:02:49.4]} 5...
Nh6 {[%clk 0:02:37.6]} 6. Bg2 {[%clk 0:02:47.6]} 6... O-O {[%clk 0:02:36.7]} 7.
O-O {[%clk 0:02:47.6]} 7... Nf5 {[%clk 0:02:36.6]} 8. c3 {[%clk 0:02:41]} 8...
Nc6 {[%clk 0:02:32.3]} 9. a3 {[%clk 0:02:26.1]} 9... a5 {[%clk 0:02:28.5]} 10.
Bd2 {[%clk 0:02:22.6]} 10... a4 {[%clk 0:02:28.1]} 11. c4 {[%clk 0:02:19.5]}
11... Nd6 {[%clk 0:02:14.5]} 12. Nxd6 {[%clk 0:02:14]} 12... exd6 {[%clk
0:02:10.8]} 13. b4 {[%clk 0:02:13.2]} 13... axb3 {[%clk 0:02:10.4]} 14. Qxb3
{[%clk 0:02:13.3]} 14... Re8 {[%clk 0:02:11.3]} 15. Rfe1 {[%clk 0:02:12.1]}
15... h6 {[%clk 0:01:58]} 16. a4 {[%clk 0:02:08.9]} 16... b6 {[%clk 0:01:43.5]}
17. Qb2 {[%clk 0:01:46.6]} 17... Bd7 {[%clk 0:01:34.9]} 18. Bf4 {[%clk
0:01:36.7]} 18... Na5 {[%clk 0:01:26.1]} 19. Bd2 {[%clk 0:01:34.4]} 19... Nb7
{[%clk 0:01:23]} 20. Nxd4 {[%clk 0:01:23.7]} 20... Nc5 {[%clk 0:01:20.8]} 21. e3
{[%clk 0:01:09.4]} 21... Nxd3 {[%clk 0:01:15.4]} 22. Qc3 {[%clk 0:01:05.1]}
22... Nxe1 {[%clk 0:01:10]} 23. Rxe1 {[%clk 0:00:54.7]} 23... c5 {[%clk
0:01:08.4]} 0-1

[Event "Early-Titled-Tuesday-Blitz-March-26-2024"]
[Site "Chess.com"]
[Date "2024.03.26"]
[Round "1"]
[White "Agibileg"]
[Black "yonaltimur"]
[Result "1-0"]
[WhiteElo "2739"]
[BlackElo "2406"]
[TimeControl "180+1"]
[EndTime "8:05:05 PDT"]
[Termination "Agibileg won on time"]

1. d4 {[%clk 0:03:00.9]} 1... d5 {[%clk 0:02:56.5]} 2. c4 {[%clk 0:02:57.9]}
2... e6 {[%clk 0:02:56.5]} 3. Nc3 {[%clk 0:02:56.9]} 3... a6 {[%clk 0:02:56.6]}
4. cxd5 {[%clk 0:02:53.6]} 4... exd5 {[%clk 0:02:57.5]} 5. Bf4 {[%clk
0:02:52.8]} 5... c6 {[%clk 0:02:57.1]} 6. e3 {[%clk 0:02:52.6]} 6... Nf6 {[%clk
0:02:57.2]} 7. Bd3 {[%clk 0:02:52.9]} 7... Bd6 {[%clk 0:02:57.8]} 8. Bg5 {[%clk
0:02:53.2]} 8... Be6 {[%clk 0:02:57.6]} 9. f4 {[%clk 0:02:52.8]} 9... c5 {[%clk
0:02:38.6]} 10. Nf3 {[%clk 0:02:41.2]} 10... h6 {[%clk 0:02:22.7]} 11. Bh4
{[%clk 0:02:39.7]} 11... cxd4 {[%clk 0:02:00]} 12. Nxd4 {[%clk 0:02:40.6]} 12...
Nc6 {[%clk 0:01:59.9]} 13. O-O {[%clk 0:02:26.3]} 13... Nxd4 {[%clk 0:01:27.9]}
14. exd4 {[%clk 0:02:27.2]} 14... g5 {[%clk 0:01:28.1]} 15. Bg3 {[%clk 0:02:22]}
15... gxf4 {[%clk 0:00:25.2]} 16. Bxf4 {[%clk 0:02:22.9]} 16... Bxf4 {[%clk
0:00:24.5]} 17. Rxf4 {[%clk 0:02:23.8]} 17... Qe7 {[%clk 0:00:24.8]} 18. Rc1
{[%clk 0:02:15.8]} 18... Rg8 {[%clk 0:00:21.9]} 19. Qf3 {[%clk 0:02:13.7]} 19...
Ng4 {[%clk 0:00:15.5]} 20. h3 {[%clk 0:02:07.6]} 20... h5 {[%clk 0:00:02.3]} 21.
hxg4 {[%clk 0:02:05.7]} 21... hxg4 {[%clk 0:00:03.2]} 22. Qg3 {[%clk 0:01:59.9]}
1-0

[Event "Early-Titled-Tuesday-Blitz-March-26-2024"]
[Site "Chess.com"]
[Date "2024.03.26"]
[Round "1"]
[White "Shahdad2007"]
[Black "Boxerandchessplayer"]
[Result "1-0"]
[WhiteElo "2604"]
[BlackElo "2203"]
[TimeControl "180+1"]
[EndTime "8:05:07 PDT"]
[Termination "Shahdad2007 won by resignation"]

1. Nf3 {[%clk 0:03:00.1]} 1... e6 {[%clk 0:03:00.9]} 2. c4 {[%clk 0:02:58.6]}
2... d5 {[%clk 0:02:57.9]} 3. g3 {[%clk 0:02:57.7]} 3... Nf6 {[%clk 0:02:57]} 4.
Bg2 {[%clk 0:02:57.5]} 4... dxc4 {[%clk 0:02:55.3]} 5. Qa4+ {[%clk 0:02:54.9]}
5... Nc6 {[%clk 0:02:50.2]} 6. Ne5 {[%clk 0:02:43.1]} 6... Nd5 {[%clk 0:02:44]}
7. Nxc6 {[%clk 0:02:38.7]} 7... bxc6 {[%clk 0:02:43.2]} 8. Qxc6+ {[%clk
0:02:34.8]} 8... Bd7 {[%clk 0:02:42.5]} 9. Qxc4 {[%clk 0:02:35.7]} 9... c6
{[%clk 0:02:38.1]} 10. O-O {[%clk 0:02:34.7]} 10... Be7 {[%clk 0:02:37.7]} 11.
d4 {[%clk 0:02:31.4]} 11... O-O {[%clk 0:02:37.8]} 12. e4 {[%clk 0:02:31.2]}
12... Nb6 {[%clk 0:02:37.5]} 13. Qe2 {[%clk 0:02:30.1]} 13... c5 {[%clk
0:02:36.8]} 14. dxc5 {[%clk 0:02:21.7]} 14... Bxc5 {[%clk 0:02:37.7]} 15. Rd1
{[%clk 0:02:21.5]} 15... Qe8 {[%clk 0:02:28.1]} 16. Nc3 {[%clk 0:02:21]} 16...
Rd8 {[%clk 0:02:24.7]} 17. Bf4 {[%clk 0:02:16]} 17... e5 {[%clk 0:02:23.5]} 18.
Be3 {[%clk 0:02:15.5]} 18... Bxe3 {[%clk 0:02:19.6]} 19. Qxe3 {[%clk 0:02:16.4]}
19... Be6 {[%clk 0:02:19.5]} 20. Nd5 {[%clk 0:02:15.3]} 20... Qb5 {[%clk
0:02:07.4]} 21. Qc3 {[%clk 0:01:47]} 21... Nxd5 {[%clk 0:01:09.1]} 22. exd5
{[%clk 0:01:45.3]} 22... Bxd5 {[%clk 0:01:10]} 23. Qxe5 {[%clk 0:01:45.3]} 23...
Bc4 {[%clk 0:01:09.6]} 24. Qxb5 {[%clk 0:01:36.7]} 24... Bxb5 {[%clk 0:01:10.5]}
25. h4 {[%clk 0:01:28.1]} 25... g6 {[%clk 0:01:05.7]} 26. f4 {[%clk 0:01:23.2]}
26... Kg7 {[%clk 0:01:02.5]} 27. Kf2 {[%clk 0:01:22.1]} 27... Bc4 {[%clk
0:00:59.3]} 28. Bf3 {[%clk 0:01:21.7]} 28... Bd5 {[%clk 0:01:00.2]} 29. Rxd5
{[%clk 0:01:20.3]} 1-0

[Event "Early-Titled-Tuesday-Blitz-March-26-2024"]
[Site "Chess.com"]
[Date "2024.03.26"]
[Round "1"]
[White "yaguigor"]
[Black "stratacticos"]
[Result "1-0"]
[WhiteElo "2569"]
[BlackElo "1859"]
[TimeControl "180+1"]
[EndTime "8:05:07 PDT"]
[Termination "yaguigor won by resignation"]

1. e4 {[%clk 0:02:57.6]} 1... c5 {[%clk 0:02:59.2]} 2. Nf3 {[%clk 0:02:45.3]}
2... Nc6 {[%clk 0:02:58.3]} 3. d4 {[%clk 0:02:31.4]} 3... cxd4 {[%clk
0:02:57.1]} 4. Nxd4 {[%clk 0:02:18.4]} 4... e5 {[%clk 0:02:56.1]} 5. Nb5 {[%clk
0:02:13.4]} 5... d6 {[%clk 0:02:55]} 6. c4 {[%clk 0:02:12.9]} 6... Be6 {[%clk
0:02:53.8]} 7. b3 {[%clk 0:02:09]} 7... Nf6 {[%clk 0:02:42.8]} 8. Bd3 {[%clk
0:02:06.9]} 8... Be7 {[%clk 0:02:40.4]} 9. O-O {[%clk 0:02:06.1]} 9... O-O
{[%clk 0:02:39.8]} 10. N5c3 {[%clk 0:02:06.1]} 10... Nd7 {[%clk 0:02:28.8]} 11.
Nd5 {[%clk 0:02:03.3]} 11... Bg5 {[%clk 0:02:23.7]} 12. Bb2 {[%clk 0:01:58.3]}
12... Rc8 {[%clk 0:02:14.1]} 13. Nbc3 {[%clk 0:01:57.8]} 13... a6 {[%clk
0:02:06.7]} 14. Be2 {[%clk 0:01:42.7]} 14... Nd4 {[%clk 0:02:04]} 15. Bg4 {[%clk
0:01:42.2]} 15... f5 {[%clk 0:01:43.6]} 16. exf5 {[%clk 0:01:40.1]} 16... Bxf5
{[%clk 0:01:42.6]} 17. Bxf5 {[%clk 0:01:39.3]} 17... Rxf5 {[%clk 0:01:32.4]} 18.
Ne4 {[%clk 0:01:38.9]} 18... Ne6 {[%clk 0:00:55.8]} 19. Nxd6 {[%clk 0:01:36.5]}
19... Rc6 {[%clk 0:00:28.1]} 20. Nxf5 {[%clk 0:01:33.6]} 1-0

[Event "Early-Titled-Tuesday-Blitz-March-26-2024"]
[Site "Chess.com"]
[Date "2024.03.26"]
[Round "1"]
[White "Goryachkina"]
[Black "Zampronha1971"]
[Result "1-0"]
[WhiteElo "2682"]
[BlackElo "2353"]
[TimeControl "180+1"]
[EndTime "8:05:11 PDT"]
[Termination "Goryachkina won by resignation"]

1. e4 {[%clk 0:02:59.6]} 1... c5 {[%clk 0:02:59.2]} 2. Nf3 {[%clk 0:02:58.4]}
2... e6 {[%clk 0:02:59.8]} 3. d4 {[%clk 0:02:56.4]} 3... cxd4 {[%clk 0:03:00.7]}
4. Nxd4 {[%clk 0:02:56.7]} 4... Nc6 {[%clk 0:03:01.6]} 5. Nc3 {[%clk 0:02:55.1]}
5... Qc7 {[%clk 0:03:02.1]} 6. Be2 {[%clk 0:02:48.3]} 6... a6 {[%clk 0:03:02.4]}
7. O-O {[%clk 0:02:46.8]} 7... Nf6 {[%clk 0:03:03]} 8. Be3 {[%clk 0:02:38.2]}
8... Bb4 {[%clk 0:03:03]} 9. Nxc6 {[%clk 0:02:27.7]} 9... bxc6 {[%clk
0:03:01.7]} 10. Na4 {[%clk 0:02:24.6]} 10... Be7 {[%clk 0:02:58.6]} 11. Qd3
{[%clk 0:02:11.5]} 11... O-O {[%clk 0:02:51.1]} 12. c4 {[%clk 0:02:09.6]} 12...
c5 {[%clk 0:02:44.5]} 13. Nc3 {[%clk 0:02:02.8]} 13... Bb7 {[%clk 0:02:42.6]}
14. Rfd1 {[%clk 0:02:00.9]} 14... Rfd8 {[%clk 0:02:41.8]} 15. Qc2 {[%clk
0:01:59.4]} 15... d5 {[%clk 0:02:14.8]} 16. exd5 {[%clk 0:01:53]} 16... exd5
{[%clk 0:02:15.7]} 17. cxd5 {[%clk 0:01:52.1]} 17... Nxd5 {[%clk 0:02:16.6]} 18.
Nxd5 {[%clk 0:01:51.4]} 18... Bxd5 {[%clk 0:02:17.5]} 19. b3 {[%clk 0:01:42.7]}
19... Qb7 {[%clk 0:02:16.4]} 20. Bf1 {[%clk 0:01:39.5]} 20... Rac8 {[%clk
0:02:16.2]} 21. Rac1 {[%clk 0:01:38.7]} 21... Bf8 {[%clk 0:02:09.4]} 22. Qf5
{[%clk 0:01:33.1]} 22... Be4 {[%clk 0:02:02.9]} 23. Qg4 {[%clk 0:01:31.6]} 23...
f5 {[%clk 0:01:26.8]} 24. Qg3 {[%clk 0:01:27.5]} 24... Rxd1 {[%clk 0:01:03.6]}
25. Rxd1 {[%clk 0:01:27.2]} 25... Qc7 {[%clk 0:00:54.5]} 26. Bc4+ {[%clk
0:01:20.1]} 26... Kh8 {[%clk 0:00:51.4]} 27. Qxc7 {[%clk 0:01:19.6]} 27... Rxc7
{[%clk 0:00:52.3]} 28. Rd8 {[%clk 0:01:19.9]} 1-0